[Event "Cabo Verde Open 2022"]
[Site "Mindelo-S. Vicente"]
[Date "2022.04.29"]
[Round "7.6"]
[White "Ferreira, Paulo"]
[Black "Pereira, Eder Marcio"]
[Result "1-0"]
[ECO "D35"]
[WhiteElo "2073"]
[BlackElo "1728"]
[Annotator "TA"]
[PlyCount "117"]
[EventDate "2022.04.22"]
[EventType "swiss"]
[SourceTitle "playchess.com"]
[Source "ChessBase"]
[SourceQuality "1"]
[TimeControl "40/5400+30:1800+30"]

{[%evp 12,117,4,5,6,-15,-16,-11,0,-8,13,5,9,0,9,7,16,7,14,18,10,18,45,21,34,31,63,19,51,21,40,29,81,71,75,61,50,46,56,41,41,36,41,13,19,11,22,11,15,11,31,11,25,11,13,0,11,0,0,0,21,12,38,0,12,0,0,0,8,0,0,0,0,0,0,0,0,-3,-3,-6,-8,-4,-5,-8,0,0,-7,-97,-97,-191,-177,-209,-46,-45,-38,-31,0,0,0,0,0,0,0,0,5069,5069,4627,1679]} 1. d4 {[%emt 0:00:05]} Nf6 {[%emt 0:05:18]} 2. c4 {[%emt 0:00:13]} e6 {[%emt 0:01:42]} 3. Nf3 {[%emt 0:00:19]} Be7 {[%emt 0:01:25]} 4. Nc3 {[%emt 0:00:33]} d5 {[%emt 0:01:55]} 5. Bg5 {[%emt 0:00:25]} O-O {[%emt 0:01:20]} 6. cxd5 {[%emt 0:03:17]} exd5 {[%emt 0:05:41]} 7. Qc2 {[%emt 0:00:46]} Re8 {[%emt 0:00:51] D35: Queen's Gambit Declined: Exchange Variation.} 8. Bxf6 {[%emt 0:01:58]} Bxf6 {[%emt 0:00:18]} 9. e3 {[%emt 0:05:57] [#]} Nc6 $146 {[%emt 0:04:32] The position is equal.} ({Predecessor:} 9... c5 10. dxc5 Qa5 11. O-O-O Bxc3 12. Qxc3 Qxa2 13. Bd3 Na6 14. Kd2 Qa4 15. Nd4 Re7 16. Bb5 {0-1 (52) De Borba,G (2143)-Terao,R (2384) Florianopolis 2018}) 10. Be2 {[%emt 0:02:25]} Bg4 {[%emt 0:05:06]} 11. O-O {[%emt 0:00:44]} Ne7 {[%emt 0:03:23]} 12. Rfe1 {[%emt 0:11:22]} c6 {[%emt 0:02:31]} 13. b4 {[%emt 0:03:30]} Qd6 {[%emt 0:05:42]} 14. Rab1 {[%emt 0:01:53]} Bf5 {[%emt 0:03:17]} 15. Bd3 {[%emt 0:00:10]} Bxd3 {[%emt 0:00:19]} 16. Qxd3 {[%emt 0:00:06]} Ng6 {[%emt 0:05:41]} 17. Rec1 {[%emt 0:05:39]} Rad8 {[%emt 0:08:00]} 18. Na4 {[%emt 0:01:32]} Re7 {[%emt 0:02:01]} 19. Qc3 {[%emt 0:03:38]} Nf8 {[%emt 0:02:31]} 20. Nc5 {[%emt 0:02:03]} Ne6 {[%emt 0:04:35]} 21. a4 {[%emt 0:03:23]} Nxc5 {[%emt 0:11:57]} (21... Rc8 $11) 22. Qxc5 $16 {[%emt 0:14:33]} Qxc5 {[%emt 0:03:34]} 23. Rxc5 {[%emt 0:00:22]} Rc8 {[%emt 0:00:31]} 24. Ne1 {[%emt 0:03:11]} Rec7 {[%emt 0:01:15]} 25. Nd3 {[%emt 0:00:24]} Be7 {[%emt 0:00:34]} 26. Rc2 {[%emt 0:00:38]} f6 {[%emt 0:00:38]} 27. Rbc1 {[%emt 0:03:36]} Kf7 {[%emt 0:02:02]} 28. Kf1 {[%emt 0:31:48]} Ke6 {[%emt 0:01:30]} 29. Ke2 {[%emt 0:00:00]} Bd6 {[%emt 0:03:18]} 30. h3 {[%emt 0:00:00]} g6 {[%emt 0:02:34]} 31. Kd2 {[%emt 0:00:00]} Kd7 {[%emt 0:00:13]} 32. Kc3 {[%emt 0:00:00]} Re8 {[%emt 0:00:16]} 33. Kb3 {[%emt 0:00:00]} Rec8 {[%emt 0:00:25]} 34. Nc5+ {[%emt 0:00:00]} Bxc5 {[%emt 0:01:46]} 35. dxc5 $11 {[%emt 0:00:00][%mdl 4096] Endgame KRR-KRR} b6 {[%emt 0:01:54]} 36. Rd1 {[%emt 0:00:00]} f5 {[%emt 0:02:59]} 37. Rd4 {[%emt 0:00:00]} Re8 {[%emt 0:00:25]} 38. cxb6 {[%emt 0:00:00]} axb6 {[%emt 0:00:46]} 39. b5 {[%emt 0:00:00]} Kd6 {[%emt 0:00:23]} 40. bxc6 {[%emt 0:00:00]} Rxc6 {[%emt 0:00:00]} (40... Re4 {keeps more tension.} 41. Rcd2 Rxd4 42. exd4 Re7) 41. Rxc6+ {[%emt 0:11:15]} Kxc6 {[%emt 0:00:34] KR-KR} 42. Rd2 {[%emt 0:01:10]} Re4 {[%emt 0:02:56]} 43. Rc2+ {[%emt 0:00:46]} Kd7 {[%emt 0:05:46]} 44. Rc3 {[%emt 0:00:53]} f4 {[%emt 0:00:26]} 45. exf4 {[%emt 0:04:26]} Rxf4 {[%emt 0:00:13]} 46. Rc2 {[%emt 0:00:37]} Kd6 {[%emt 0:00:50]} 47. g3 {[%emt 0:02:16]} Rf7 {[%emt 0:06:10]} 48. f4 {[%emt 0:03:05]} Re7 {[%emt 0:02:12]} 49. Rc3 {[%emt 0:03:05]} (49. g4 $11 {remains equal.}) 49... d4 $17 {[%emt 0:00:17]} 50. Rf3 {[%emt 0:04:13]} (50. Rc1 $17 {is a better defense.}) 50... Kd5 $1 $19 {[%emt 0:04:17] ...Re3+ is the strong threat.} 51. Kc2 {[%emt 0:01:15] [#]} Rc7+ $2 {[%emt 0:01:58]} ({Black should try} 51... Re2+ $1 $19 52. Kd3 Ra2) 52. Kd2 $15 {[%emt 0:00:32]} Ra7 {[%emt 0:01:38]} 53. f5 {[%emt 0:01:41]} Ke4 {[%emt 0:00:11]} 54. Rf4+ {[%emt 0:00:10]} Ke5 {[%emt 0:00:18]} 55. f6 {[%emt 0:00:52] Threatens to win with f7.} Rf7 {[%emt 0:01:11]} 56. Kd3 {[%emt 0:00:11]} g5 {[%emt 0:00:51]} 57. Rf2 {[%emt 0:00:33]} h5 $2 {[%emt 0:01:11][%mdl 8192] [#]} (57... Rxf6 $11 58. Rxf6 Kxf6 59. Kxd4 Ke6) 58. g4 $1 $18 {[%emt 0:00:48]} ({Less strong is} 58. Rb2 Ra7 $16) 58... Ke6 {[%emt 0:06:43]} 59. Rf5 {[%emt 0:07:42] White used his chance.  Weighted Error Value: White=0.14 (very precise) /Black=0.12 (very precise)} (59. gxh5 $142 Ke5 60. h6) 1-0

[Event "Cabo Verde Open 2022"]
[Site "Mindelo-S. Vicente"]
[Date "2022.04.29"]
[Round "7.7"]
[White "Caxita, Esperanca"]
[Black "Mirulla, David"]
[Result "1-0"]
[ECO "B13"]
[WhiteElo "1910"]
[BlackElo "1972"]
[Annotator "TA"]
[PlyCount "77"]
[EventDate "2022.04.22"]
[EventType "swiss"]
[SourceTitle "playchess.com"]
[Source "ChessBase"]
[SourceQuality "1"]
[TimeControl "40/5400+30:1800+30"]

{[%evp 11,77,16,30,0,0,0,0,-10,11,0,23,23,25,22,29,22,22,12,25,0,24,14,14,6,7,0,0,-65,-45,-70,-67,-99,-95,-102,-96,-159,-25,-25,-25,-25,0,-14,22,15,27,0,0,0,104,122,127,54,70,52,226,187,227,242,402,395,794,751,1073,902,1050,967,965,906]} 1. e4 {[%emt 0:00:44]} c6 {[%emt 0:00:31]} 2. d4 {[%emt 0:00:54]} d5 {[%emt 0:00:10]} 3. exd5 {[%emt 0:00:32]} cxd5 {[%emt 0:00:11]} 4. Bd3 {[%emt 0:00:23]} Nc6 {[%emt 0:00:26]} 5. c3 {[%emt 0:00:36]} Nf6 {[%emt 0:00:16]} 6. Nf3 {[%emt 0:00:28]} Bg4 {[%emt 0:00:46]} 7. Bg5 {[%emt 0:01:26] B13: Caro-Kann: Exchange Variation and Panov-Botvinnik Attack.} e6 {[%emt 0:14:12]} 8. Nbd2 {[%emt 0:01:05]} Bd6 {[%emt 0:01:54]} 9. O-O {[%emt 0:02:19] The position is equal.} Bh5 {[%emt 0:05:40]} 10. Qb3 {[%emt 0:02:06]} Qb6 {[%emt 0:09:14] [#]} 11. Qxb6 $146 {[%emt 0:04:13]} ({Predecessor:} 11. Rfe1 O-O 12. Bh4 Rac8 13. Bg3 Bxg3 14. hxg3 Nd7 15. Ng5 Bg6 16. Bxg6 hxg6 17. Rab1 Qxb3 18. axb3 {1-0 (71) Liitiainen,E (2190)-Hytonen,H Helsinki 2002}) 11... axb6 {[%emt 0:00:10]} 12. Rfe1 {[%emt 0:05:25]} Bg6 {[%emt 0:08:41]} 13. Bxg6 {[%emt 0:04:05]} hxg6 {[%emt 0:00:10]} 14. a3 {[%emt 0:00:42]} b5 {[%emt 0:01:49]} 15. h3 {[%emt 0:11:53]} Rh5 {[%emt 0:05:32]} 16. Rac1 {[%emt 0:07:35]} Kd7 {[%emt 0:05:44]} 17. Re2 {[%emt 0:06:02]} Na5 {[%emt 0:05:00]} 18. Rce1 {[%emt 0:09:57]} Nc4 {[%emt 0:02:27]} 19. Bxf6 {[%emt 0:09:10]} (19. Nf1 $11) 19... gxf6 $15 {[%emt 0:01:37]} 20. Nf1 {[%emt 0:00:40]} Rah8 {[%emt 0:07:16]} 21. Ng3 {[%emt 0:04:03]} R5h7 {[%emt 0:00:30]} 22. Nh2 {[%emt 0:04:08]} f5 {[%emt 0:04:33] Against Ng4} 23. Nf3 {[%emt 0:02:14]} (23. Nh1 $142) 23... f4 {[%emt 0:01:48]} (23... g5 $17 {...f4 is the strong threat.} 24. Nxg5 Rg7) 24. Nf1 $11 {[%emt 0:00:54][%cal Bg3f1,Bf1h2,Bh2g4][%mdl 32]} Rh5 {[%emt 0:04:55]} 25. N1h2 {[%emt 0:02:19]} Be7 {[%emt 0:15:26]} 26. Ng4 {[%emt 0:01:40]} Nd6 {[%emt 0:00:43]} 27. Nfe5+ {[%emt 0:02:02] Pair of Knights!} Ke8 {[%emt 0:00:20]} 28. f3 {[%emt 0:10:28]} Bh4 {[%emt 0:00:22]} 29. Ra1 {[%emt 0:01:49]} Nf5 {[%emt 0:01:16]} (29... Ke7 $11 {remains equal.}) 30. Nd3 $16 {[%emt 0:01:09]} Ng3 {[%emt 0:00:24]} 31. Re5 {[%emt 0:01:10]} ({White should play} 31. Ree1 $16) 31... Rxe5 $14 {[%emt 0:01:28]} 32. Ngxe5 {[%emt 0:00:51]} Nh5 $2 {[%emt 0:02:07] Loses the game.} (32... Ne2+ $14 33. Kf1 Ng3+ 34. Ke1 Ke7) 33. a4 $18 {[%emt 0:00:43]} bxa4 {[%emt 0:00:50]} 34. Rxa4 {[%emt 0:00:15] [#] Strongly threatening Ra8+.} Ke7 $2 {[%emt 0:00:22]} (34... Kf8 {might work better.} 35. Ra8+ Kg7 36. Rxh8 Kxh8) 35. Ra7 {[%emt 0:00:20]} Rf8 $2 {[%emt 0:00:32]} (35... Rc8 36. Rxb7+ Ke8) 36. Rxb7+ {[%emt 0:00:31] White is clearly winning.} Ke8 {[%emt 0:00:29]} 37. Nc5 {[%emt 0:01:59]} Bd8 {[%emt 0:00:34]} 38. Rb8 {[%emt 0:01:09]} Ke7 {[%emt 0:00:32]} 39. Nc6+ {[%emt 0:02:01] Weighted Error Value: White=0.19 (very precise) /Black=0.41} 1-0

[Event "Cabo Verde Open 2022"]
[Site "Mindelo-S. Vicente"]
[Date "2022.04.29"]
[Round "7.8"]
[White "Barros Gutierrez, Angel Luis"]
[Black "Junior, Ednasia"]
[Result "1-0"]
[ECO "E90"]
[WhiteElo "2040"]
[BlackElo "1898"]
[Annotator "TA"]
[PlyCount "123"]
[EventDate "2022.04.22"]
[EventType "swiss"]
[SourceTitle "playchess.com"]
[Source "ChessBase"]
[SourceQuality "1"]
[TimeControl "40/5400+30:1800+30"]

{[%evp 11,123,37,59,-5,62,63,73,41,44,41,75,75,85,74,74,72,89,83,102,40,55,41,112,109,92,97,135,131,125,107,112,-34,-46,-28,-47,-49,6,-44,-1,0,25,24,20,15,66,-41,1901,1870,29986,29987,29987,29988,29994,29995,29997,331,295,287,29986,384,353,371,371,378,361,372,355,232,337,196,191,192,276,261,271,191,258,266,29973,29972,29972,5081,5081,5077,4803,2350,2632,1454,1904,1117,1052,983,1258,1171,5089,5089,1793,1399,29987,29988,29989,29990,29989,5073,29988,29989,29992,29993,29995,29992,29994,29991,29991,29992]} 1. Nf3 {[%emt 0:08:11]} Nf6 {[%emt 0:00:18]} 2. d4 {[%emt 0:00:38]} g6 {[%emt 0:00:09]} 3. c4 {[%emt 0:01:09]} Bg7 {[%emt 0:00:06]} 4. Nc3 {[%emt 0:00:51]} O-O {[%emt 0:00:10]} 5. e4 {[%emt 0:00:23]} d6 {[%emt 0:00:14]} 6. h3 {[%emt 0:00:19]} Nbd7 {[%emt 0:03:32]} 7. Bf4 {[%emt 0:00:33] E90: King's Indian: Classical: Early deviations and 6 h3.} (7. Bd3 $14) 7... c5 {[%emt 0:05:01]} (7... e5 $11 8. dxe5 dxe5) 8. d5 $1 $14 {[%emt 0:00:38]} Qa5 {[%emt 0:05:37] aiming for ...Nxe4.} 9. Qd2 {[%emt 0:00:48] White is better.} a6 {[%emt 0:02:59][%cal Ob7b5]} 10. Bd3 {[%emt 0:00:24] [#]} Re8 $146 {[%emt 0:01:23][%cal Ob7b5]} ({Predecessor:} 10... b5 11. O-O bxc4 12. Bxc4 Qb4 13. Bd3 Nh5 14. a3 Qb3 15. Bg5 Re8 16. Rab1 Ne5 17. Nxe5 Bxe5 18. Bc2 Qc4 {1-0 (45) Gochelashvili,D (2436)-Kozak,A (2373) Anapa 2011}) 11. O-O {[%emt 0:00:34]} Nh5 {[%emt 0:03:13]} 12. Bh6 {[%emt 0:00:36]} Ne5 {[%emt 0:02:52]} 13. Be2 {[%emt 0:01:19]} Nxf3+ {[%emt 0:04:47]} 14. Bxf3 {[%emt 0:01:07]} Nf6 {[%emt 0:03:17]} 15. g4 {[%emt 0:00:54]} ({White should play} 15. Bxg7 $16 Kxg7 16. Be2) 15... b5 {[%emt 0:03:54]} 16. Bg2 {[%emt 0:03:30]} bxc4 {[%emt 0:09:48] [#]} ({Black should try} 16... Bxh6 $14 17. Qxh6 Kh8) 17. Bxg7 $1 $16 {[%emt 0:00:54]} Kxg7 {[%emt 0:00:15]} 18. f4 {[%emt 0:00:18]} Rb8 {[%emt 0:03:24]} 19. e5 {[%emt 0:02:15]} Ng8 {[%emt 0:06:54]} 20. Qe2 {[%emt 0:04:01]} Qc7 {[%emt 0:04:09]} 21. f5 {[%emt 0:02:55]} (21. Rf2 $16) 21... dxe5 $15 {[%emt 0:02:58]} 22. fxg6 {[%emt 0:02:05]} hxg6 {[%emt 0:03:21]} 23. Ne4 {[%emt 0:02:58]} f6 {[%emt 0:09:35]} (23... f5 $15 24. gxf5 Bxf5) 24. Qf2 {[%emt 0:01:54]} (24. Rf2 $11) 24... Rb5 {[%emt 0:03:11]} 25. Rad1 {[%emt 0:01:09]} Rf8 {[%emt 0:09:41]} (25... Qb6 $5 {[%cal Rb5b2]}) 26. d6 {[%emt 0:03:50]} exd6 {[%emt 0:01:59]} 27. Nxd6 {[%emt 0:00:42]} (27. Rxd6 Rb6 28. Rd5 Rd8 29. Rxc5 Qb8 $15) 27... Rb8 {[%emt 0:02:46]} (27... Rb4 $11) 28. Rd5 {[%emt 0:02:05] White is much more active. The black rooks are badly placed.} (28. Nxc4 Rd8 $11) (28. g5 $1 $14 Qe7 29. Qxc5) 28... Ne7 $2 {[%emt 0:01:35][%mdl 8192] [#] A mistake that costs the game.} (28... Be6 $15 29. Rd2 Rbd8) 29. Ne8+ $1 $18 {[%emt 0:03:15][%mdl 576] Deflection} Rxe8 {[%emt 0:01:37]} (29... Kg8 30. Nxc7) 30. Qxf6+ {[%emt 0:00:34]} Kh7 {[%emt 0:03:33]} 31. Qf7+ {[%emt 0:08:42]} Kh6 {[%emt 0:01:17]} 32. g5+ {[%emt 0:00:47][%mdl 64] Decoy} (32. Qxe8 Bb7 33. g5+ (33. Rd7 Rxe8 34. Rxc7 Bxg2 $11) 33... Kxg5 34. h4+ (34. Rd7 Rxe8 35. Rxc7 Bxg2 $15) 34... Kxh4 $11) 32... Kxg5 {[%emt 0:00:45]} 33. Qf6+ $2 {[%emt 0:00:25]} (33. Qf4+ Kh5 34. h4 Nxd5 35. Qg5#) 33... Kh6 {[%emt 0:00:18]} 34. Rxe5 {[%emt 0:02:23] And now Rf4 would win. Dancing on a razor blade.} Bf5 $2 {[%emt 0:00:39]} (34... Rxb2 $2 35. Rf4 Rxg2+ 36. Kxg2 Qc6+ 37. Qxc6 Nxc6 38. Rh4+ Kg7 39. Rxe8 $18) (34... Qd7 $18 35. Rf4 (35. Rxc5 Qe6 $11) 35... Nf5) 35. Rfe1 $2 {[%emt 0:01:45]} (35. Rf4 {mates} Bg4 36. Rxg4 Qxe5 37. Qxe5 Nf5 38. Qf6 Rg8 39. Bd5 Rbf8 40. Bf7 Rxf7 41. Qxf7) 35... Ng8 {[%emt 0:02:04]} 36. Qh4+ {[%emt 0:00:56]} Kg7 {[%emt 0:00:00]} 37. Rxe8 {[%emt 0:00:52]} Rxe8 {[%emt 0:00:01]} 38. Rxe8 {[%emt 0:00:26] Hoping for Bd5.} Qd7 {[%emt 0:00:25] Inhibits Bd5.} 39. Re1 {[%emt 0:01:39]} (39. Rd8 Qe6 40. Qf2 (40. Bf1 Qe3+ 41. Kh2 Qe5+ 42. Kg1 Qe3+ 43. Kh2 Qe5+ 44. Qg3 Qxb2+ 45. Kg1 Qf6 $16) 40... Qf6 $18) 39... Bd3 {[%emt 0:00:58]} (39... Qd4+ {was worth a try.} 40. Qf2 Nf6 41. Re7+ Kf8) 40. Qg5 {[%emt 0:00:00]} (40. Re5 $142) 40... Qd4+ {[%emt 0:00:00]} 41. Kh1 {[%emt 0:02:52]} Qxb2 {[%emt 0:05:14]} (41... Bf5 {keeps fighting.} 42. Qe3 a5 43. Qe5+ Nf6 44. Qe7+ (44. Qb8 g5 $16) 44... Kh6) 42. Qxc5 {[%emt 0:08:28]} Qf6 {[%emt 0:04:53]} 43. Bd5 {[%emt 0:01:49] Black must now prevent Qa7+.} Qf5 {[%emt 0:07:24]} (43... Qh4 {was called for.} 44. Qa7+ Kh6 45. Qe3+ Kh7) 44. Qd4+ {[%emt 0:01:00]} Kh6 $2 {[%emt 0:04:27]} (44... Kf8 $18 45. Bg2 (45. Bxc4 $2 Qxh3+ 46. Kg1 Qg3+ 47. Kh1 Qh3+ 48. Kg1 Qg3+ 49. Kh1 Qxe1+ $19) 45... Qf6) 45. Qh8+ {[%emt 0:00:53]} Kg5 {[%emt 0:12:17]} 46. Re5 {[%emt 0:00:27]} (46. Rg1+ $142 Kf4 47. Rg4+ Qxg4 48. Qd4+ Kg5 49. Qxg4+ Kf6 50. Bxg8 Ke5 51. Bxc4) 46... Nh6 {[%emt 0:00:00]} 47. Rxf5+ {[%emt 0:00:41]} Nxf5 {[%emt 0:00:00]} 48. Qc8 {[%emt 0:02:40]} Ne3 {[%emt 0:00:00]} 49. Qd8+ {[%emt 0:00:50]} Kf4 {[%emt 0:00:00]} 50. Qh4+ {[%emt 0:01:29]} Ke5 {[%emt 0:00:00]} 51. Qg3+ {[%emt 0:02:22]} Kd4 {[%emt 0:00:00]} 52. Bc6 {[%emt 0:01:53] Intending Qd6+ and mate.} Bf5 {[%emt 0:00:00]} 53. Qd6+ {[%emt 0:00:23]} Kc3 {[%emt 0:00:00]} 54. Kg1 {[%emt 0:01:30]} Kc2 {[%emt 0:00:00]} 55. Ba4+ {[%emt 0:00:32]} Kc3 {[%emt 0:00:00]} 56. Kf2 {[%emt 0:02:10]} Nc2 {[%emt 0:00:00]} 57. Qxa6 {[%emt 0:02:25]} (57. Bxc2 $142 Kxc2 58. Ke3 c3 59. Qd5 g5 60. Qb3+ Kc1 61. Qxc3+ Bc2 62. Qa3+ Kb1 63. Kd2 Bf5 64. Kc3 Bxh3 65. Qb2#) 57... Bd3 {[%emt 0:00:00]} 58. Bxc2 {[%emt 0:00:38] White mates.} Kxc2 {[%emt 0:00:00]} 59. Ke3 {[%emt 0:00:32]} Bf5 {[%emt 0:00:00]} 60. Qc6 {[%emt 0:01:00]} Bd3 {[%emt 0:00:00]} 61. a4 {[%emt 0:00:21][%cal Ba2a4,Ba4a5][%mdl 32]} Bf1 {[%emt 0:00:00]} 62. a5 {[%emt 0:00:49] Weighted Error Value: White=0.59/Black=0.81} 1-0

[Event "Cabo Verde Open 2022"]
[Site "Mindelo-S. Vicente"]
[Date "2022.04.30"]
[Round "8.1"]
[White "Ortega Amarelle, Mariano"]
[Black "Del Rio De Angelis, Salvador G."]
[Result "0-1"]
[ECO "E01"]
[WhiteElo "2476"]
[BlackElo "2452"]
[Annotator "TA"]
[PlyCount "72"]
[EventDate "2022.04.22"]
[EventType "swiss"]
[SourceTitle "playchess.com"]
[Source "ChessBase"]
[SourceQuality "1"]
[TimeControl "40/5400+30:1800+30"]

{[%evp 9,72,47,33,27,18,37,19,13,12,11,17,0,0,0,0,0,0,0,0,0,16,0,0,0,0,0,0,0,0,0,0,0,0,-38,-23,-49,-64,-41,-42,-90,-84,-82,-93,-140,-159,-234,-235,-218,-224,-488,-495,-471,-499,-529,-477,-514,-489,-506,-506,-591,-476,-651,-633,-602,-589]} 1. d4 {[%emt 0:00:53]} Nf6 {[%emt 0:03:26]} 2. Nf3 {[%emt 0:01:00]} e6 {[%emt 0:00:20]} 3. c4 {[%emt 0:00:28]} d5 {[%emt 0:00:41]} 4. g3 {[%emt 0:00:10]} h6 {[%emt 0:01:23]} 5. Bg2 {[%emt 0:01:01]} Bd6 {[%emt 0:00:08]} 6. O-O {[%emt 0:04:07] E01: Catalan: Early deviations.} O-O {[%emt 0:00:09]} 7. Nc3 {[%emt 0:00:33]} Nc6 {[%emt 0:00:09] Prevents Ne5.} 8. a3 {[%emt 0:17:35] The position is equal.} dxc4 {[%emt 0:07:39]} 9. Qa4 {[%emt 0:00:41] Against Na5} e5 {[%emt 0:00:10]} 10. dxe5 {[%emt 0:20:00]} Nxe5 {[%emt 0:00:28]} 11. Nxe5 {[%emt 0:00:08]} Bxe5 {[%emt 0:00:08]} 12. Qxc4 {[%emt 0:00:13]} (12. Rd1 $5 {[%cal Rd1d8]} Qe7 13. Qxc4 $11) 12... c6 {[%emt 0:13:16]} 13. Rd1 {[%emt 0:03:37]} Qe7 {[%emt 0:07:18] [#]} 14. Be3 $146 {[%emt 0:14:28] Threatens to win with Bc5.} ({Predecessor:} 14. Bf4 Be6 15. Qb4 Qxb4 16. axb4 Bxf4 17. gxf4 a6 18. Rd4 Rfd8 19. Rad1 Rxd4 20. Rxd4 {½-½ (64) Posthuma,J (2339)-Jacobson,A (2262) Charlotte 2020}) 14... Be6 {[%emt 0:06:58]} 15. Qb4 {[%emt 0:06:58]} Qxb4 {[%emt 0:00:30]} 16. axb4 {[%emt 0:00:01]} a6 {[%emt 0:00:10]} 17. Bd4 {[%emt 0:00:16]} Bxd4 {[%emt 0:08:25]} 18. Rxd4 {[%emt 0:00:04]} Rfd8 {[%emt 0:00:16]} 19. Rad1 {[%emt 0:00:18]} Rxd4 {[%emt 0:00:10]} 20. Rxd4 {[%emt 0:00:07]} Kf8 {[%emt 0:00:03]} 21. Na4 {[%emt 0:10:02]} a5 {[%emt 0:00:40] And now ...axb4 would win.} 22. h3 {[%emt 0:04:58]} axb4 {[%emt 0:06:48]} 23. Rxb4 {[%emt 0:00:02]} b5 {[%emt 0:00:10][%cal Bb7b5,Bb5b4][%mdl 32]} 24. Nc3 {[%emt 0:05:57]} (24. Nc5 $15 Ra1+ 25. Kh2) 24... Ra6 {[%emt 0:04:17] Strongly threatening ...Bc4.} 25. Rd4 {[%emt 0:05:21]} c5 {[%emt 0:01:54]} 26. Rd8+ {[%emt 0:00:02]} ({Better is} 26. Rd2) 26... Ke7 $17 {[%emt 0:00:07]} 27. Rb8 {[%emt 0:00:13]} (27. Rd2 $17 b4 28. Nd1) 27... b4 $19 {[%emt 0:00:26]} 28. Rb7+ {[%emt 0:00:08]} Nd7 {[%emt 0:06:43]} 29. Ne4 $2 {[%emt 0:01:29]} (29. Nd5+ Kd6 30. Nc7) 29... Ra1+ {[%emt 0:01:58] Black is clearly winning.} 30. Kh2 {[%emt 0:00:02] Black must now prevent Nxc5.} Bd5 {[%emt 0:00:52]} 31. Rc7 {[%emt 0:03:28] [#]} Kd8 $1 {[%emt 0:03:43]} 32. Rxc5 {[%emt 0:00:53]} Nxc5 {[%emt 0:00:17]} ({But not} 32... Bxe4 $2 33. Rb5 Bxg2 34. Kxg2 $19) 33. Nxc5 {[%emt 0:00:08]} Bc4 {[%emt 0:00:04]} 34. Bf3 {[%emt 0:01:38]} Rb1 {[%emt 0:02:50]} 35. Nb7+ {[%emt 0:00:30]} Kc7 {[%emt 0:00:58]} 36. Na5 {[%emt 0:00:06]} Be6 {[%emt 0:00:30] Weighted Error Value: White=0.36/Black=0.05 (flawless)} 0-1